[Event "Charlotte Fall IM-D 2023"]
[Site "Charlotte"]
[Date "2023.11.18"]
[Round "4.4"]
[White "Karthik, Advaith"]
[Black "Wan, Joseph"]
[Result "1/2-1/2"]
[ECO "D27"]
[WhiteElo "2156"]
[BlackElo "2242"]
[Annotator "RC"]
[PlyCount "23"]
[EventDate "2023.11.17"]
[EventType "tourn"]
[EventCountry "USA"]
[SourceTitle "playchess.com"]
[Source "ChessBase"]
[SourceQuality "1"]
[TimeControl "5400+30"]

1. d4 {[%emt 0:10:42]} d5 {[%emt 0:00:11]} 2. c4 {[%emt 0:00:13]} dxc4 {[%emt 0:00:08]} 3. Nf3 {[%emt 0:00:05]} Nf6 {[%emt 0:00:04]} 4. e3 {[%emt 0:00:49]} e6 {[%emt 0:00:03]} 5. Bxc4 {[%emt 0:00:09]} a6 {[%emt 0:00:14]} 6. O-O {[%emt 0:01:58]} b5 {[%emt 0:01:20]} 7. Be2 {[%emt 0:01:02]} Bb7 {[%emt 0:01:14]} 8. a3 {[%emt 0:00:10]} c5 {[%emt 0:02:08]} 9. dxc5 {[%emt 0:00:19]} Qxd1 {[%emt 0:00:22]} 10. Rxd1 {[%emt 0:00:02]} Bxc5 {[%emt 0:00:02]} 11. b4 {[%emt 0:00:09]} Be7 {[%emt 0:01:05]} 12. Bb2 {[%emt 0:00:04]} 1/2-1/2

[Event "Charlotte Fall IM-D 2023"]
[Site "Charlotte"]
[Date "2023.11.19"]
[Round "4.5"]
[White "Matta, Nicholas"]
[Black "Eckert, Doug"]
[Result "1-0"]
[ECO "D37"]
[WhiteElo "2287"]
[BlackElo "2120"]
[Annotator "RC"]
[PlyCount "107"]
[EventDate "2023.11.17"]
[EventType "tourn"]
[EventCountry "USA"]
[SourceTitle "playchess.com"]
[Source "ChessBase"]
[SourceQuality "1"]
[TimeControl "5400+30"]

1. d4 {[%emt 0:01:16]} Nf6 {[%emt 0:02:18]} 2. c4 {[%emt 0:00:12]} e6 {[%emt 0:00:18]} 3. Nf3 {[%emt 0:00:13]} d5 {[%emt 0:00:32]} 4. Nc3 {[%emt 0:00:10]} Nbd7 {[%emt 0:00:41]} 5. g3 {[%emt 0:05:40]} Bb4 {[%emt 0:04:31]} 6. Bg2 {[%emt 0:00:51]} Ne4 {[%emt 0:05:09]} 7. Qc2 {[%emt 0:07:48]} O-O {[%emt 0:03:55]} 8. a3 {[%emt 0:02:01]} Bxc3+ {[%emt 0:01:51]} 9. bxc3 {[%emt 0:00:08]} c6 {[%emt 0:04:34]} 10. O-O {[%emt 0:01:28]} Nd6 {[%emt 0:01:34]} 11. c5 {[%emt 0:01:59]} Nc4 {[%emt 0:01:46]} 12. e4 {[%emt 0:05:05]} b6 {[%emt 0:02:46]} 13. Ng5 {[%emt 0:04:49]} g6 {[%emt 0:01:35]} 14. cxb6 {[%emt 0:03:50]} axb6 {[%emt 0:02:07]} 15. h4 {[%emt 0:01:22]} Ba6 {[%emt 0:18:53]} 16. Re1 {[%emt 0:02:04]} Re8 {[%emt 0:03:39]} 17. h5 {[%emt 0:02:43]} Nf8 {[%emt 0:02:33]} 18. e5 {[%emt 0:06:27]} f6 {[%emt 0:05:08]} 19. Nh3 {[%emt 0:09:08]} f5 {[%emt 0:12:03]} 20. Bg5 {[%emt 0:01:38]} Qc7 {[%emt 0:00:57]} 21. Qc1 {[%emt 0:02:27]} Reb8 {[%emt 0:04:49]} 22. Bf6 {[%emt 0:04:06]} Kf7 {[%emt 0:00:06]} 23. Qh6 {[%emt 0:02:25]} Ke8 {[%emt 0:00:42]} 24. Ng5 {[%emt 0:01:21]} Ra7 {[%emt 0:02:15]} 25. hxg6 {[%emt 0:03:28]} hxg6 {[%emt 0:00:11]} 26. Bf3 {[%emt 0:00:25]} Nd2 {[%emt 0:02:52]} 27. Kg2 {[%emt 0:01:22]} Nxf3 {[%emt 0:00:52]} 28. Kxf3 {[%emt 0:00:13]} c5 {[%emt 0:05:01]} 29. Qxf8+ {[%emt 0:05:55]} Kxf8 {[%emt 0:00:08]} 30. Nxe6+ {[%emt 0:00:03]} Kf7 {[%emt 0:02:38]} 31. Nxc7 {[%emt 0:00:08]} Rxc7 {[%emt 0:00:02]} 32. Rh1 {[%emt 0:00:16]} Ke6 {[%emt 0:00:24]} 33. Rh6 {[%emt 0:01:22]} cxd4 {[%emt 0:01:37]} 34. cxd4 {[%emt 0:00:29]} Rc3+ {[%emt 0:01:18]} 35. Kf4 {[%emt 0:00:42]} Rd3 {[%emt 0:01:21]} 36. f3 {[%emt 0:02:18]} Rxd4+ {[%emt 0:02:44]} 37. Kg5 {[%emt 0:00:06]} Rd3 {[%emt 0:01:07]} 38. Rc1 {[%emt 0:07:17]} d4 {[%emt 0:00:54]} 39. Rc6+ {[%emt 0:00:58]} Kd5 {[%emt 0:00:16]} 40. Rd6+ {[%emt 0:00:11]} Kc4 {[%emt 0:00:08]} 41. e6 {[%emt 0:00:28]} Rxf3 {[%emt 0:01:59]} 42. Rxd4+ {[%emt 0:00:24]} Kb3 {[%emt 0:00:54]} 43. Be5 {[%emt 0:00:13]} Re8 {[%emt 0:00:58]} 44. Kf6 {[%emt 0:01:18]} Bc4 {[%emt 0:00:08]} 45. e7 {[%emt 0:00:59]} Re3 {[%emt 0:00:14]} 46. Rh7 {[%emt 0:01:59]} Re4 {[%emt 0:00:51]} 47. Rd8 {[%emt 0:03:09]} Bb5 {[%emt 0:00:04]} 48. Rxe8 {[%emt 0:00:54]} Bxe8 {[%emt 0:00:03]} 49. Rh8 {[%emt 0:00:06]} Ba4 {[%emt 0:00:27]} 50. e8=Q {[%emt 0:03:27]} Bxe8 {[%emt 0:00:04]} 51. Rxe8 {[%emt 0:00:06]} Kxa3 {[%emt 0:01:26]} 52. Rb8 {[%emt 0:00:14]} Rg4 {[%emt 0:00:45]} 53. Rxb6 {[%emt 0:00:14]} Ka4 {[%emt 0:00:02]} 54. Rd6 {[%emt 0:00:23]} 1-0

[Event "Charlotte Fall IM-D 2023"]
[Site "Charlotte"]
[Date "2023.11.19"]
[Round "5.2"]
[White "Wan, Joseph"]
[Black "Matta, Nicholas"]
[Result "0-1"]
[ECO "B10"]
[WhiteElo "2242"]
[BlackElo "2287"]
[Annotator "RC"]
[PlyCount "94"]
[EventDate "2023.11.17"]
[EventType "tourn"]
[EventCountry "USA"]
[SourceTitle "playchess.com"]
[Source "ChessBase"]
[SourceQuality "1"]
[TimeControl "5400+30"]

1. e4 {[%emt 0:08:22]} c6 {[%emt 0:01:25]} 2. Nf3 {[%emt 0:01:52]} d5 {[%emt 0:00:13]} 3. d3 {[%emt 0:00:07]} dxe4 {[%emt 0:00:13]} 4. dxe4 {[%emt 0:00:06]} Qxd1+ {[%emt 0:00:10]} 5. Kxd1 {[%emt 0:00:03]} Nf6 {[%emt 0:00:12]} 6. Nbd2 {[%emt 0:01:37]} g6 {[%emt 0:00:14]} 7. c3 {[%emt 0:01:44]} Bh6 {[%emt 0:02:07]} 8. h3 {[%emt 0:04:39]} Nbd7 {[%emt 0:04:01]} 9. b4 {[%emt 0:06:56]} a5 {[%emt 0:06:57]} 10. Bd3 {[%emt 0:08:31]} Bg7 {[%emt 0:07:19]} 11. Bb2 {[%emt 0:02:51]} Nb6 {[%emt 0:02:42]} 12. Bc2 {[%emt 0:08:00]} O-O {[%emt 0:03:18]} 13. a3 {[%emt 0:08:41]} Rd8 {[%emt 0:03:48]} 14. Ke2 {[%emt 0:05:55]} Be6 {[%emt 0:09:00]} 15. Rhd1 {[%emt 0:17:31]} Nc4 {[%emt 0:10:08]} 16. Nxc4 {[%emt 0:01:18]} Bxc4+ {[%emt 0:00:07]} 17. Ke1 {[%emt 0:00:16]} Nd7 {[%emt 0:02:52]} 18. g3 {[%emt 0:08:34]} Kf8 {[%emt 0:03:13]} 19. h4 {[%emt 0:01:10]} Ke8 {[%emt 0:01:58]} 20. Nd2 {[%emt 0:03:38]} Nb6 {[%emt 0:13:30]} 21. f4 {[%emt 0:02:30]} e5 {[%emt 0:03:15]} 22. f5 {[%emt 0:02:34]} Bd3 {[%emt 0:03:19]} 23. Bb3 {[%emt 0:01:17]} Bh6 {[%emt 0:01:41]} 24. fxg6 {[%emt 0:00:08]} hxg6 {[%emt 0:00:31]} 25. c4 {[%emt 0:02:18]} a4 {[%emt 0:01:24]} 26. Ba2 {[%emt 0:00:05]} Bc2 {[%emt 0:00:14]} 27. c5 {[%emt 0:00:15]} Bxd1 {[%emt 0:00:20]} 28. Rxd1 {[%emt 0:00:04]} Rxd2 {[%emt 0:00:45]} 29. Rxd2 {[%emt 0:00:01]} Bxd2+ {[%emt 0:00:09]} 30. Kxd2 {[%emt 0:00:03]} Nd7 {[%emt 0:00:15]} 31. Ke3 {[%emt 0:00:35]} Ke7 {[%emt 0:00:28]} 32. Bb1 {[%emt 0:00:37]} f6 {[%emt 0:01:17]} 33. Bc2 {[%emt 0:00:21]} Nf8 {[%emt 0:00:07]} 34. Bc3 {[%emt 0:01:07]} Ne6 {[%emt 0:00:09]} 35. Bb2 {[%emt 0:00:03]} Nc7 {[%emt 0:02:22]} 36. Bc1 {[%emt 0:01:52]} Ke6 {[%emt 0:01:39]} 37. Bb2 {[%emt 0:00:39]} Nb5 {[%emt 0:00:15]} 38. Bd1 {[%emt 0:00:09]} Nd4 {[%emt 0:01:01]} 39. h5 {[%emt 0:00:47]} gxh5 {[%emt 0:00:47]} 40. Bxh5 {[%emt 0:00:04]} Rg8 {[%emt 0:00:12]} 41. Kf2 {[%emt 0:01:02]} Nb3 {[%emt 0:01:15]} 42. Be2 {[%emt 0:00:24]} Rh8 {[%emt 0:00:53]} 43. Bc4+ {[%emt 0:00:49]} Ke7 {[%emt 0:00:06]} 44. Kg2 {[%emt 0:00:04]} Rd8 {[%emt 0:00:17]} 45. Bc3 {[%emt 0:00:08]} Nd2 {[%emt 0:00:10]} 46. Bxd2 {[%emt 0:02:03]} Rxd2+ {[%emt 0:00:07]} 47. Kf3 {[%emt 0:00:02]} Rc2 {[%emt 0:00:06]} 0-1

[Event "Charlotte Fall IM-D 2023"]
[Site "Charlotte"]
[Date "2023.11.19"]
[Round "5.3"]
[White "Andrianov, Nikolay"]
[Black "Karthik, Advaith"]
[Result "0-1"]
[ECO "E05"]
[WhiteElo "1816"]
[BlackElo "2156"]
[Annotator "RC"]
[PlyCount "194"]
[EventDate "2023.11.17"]
[EventType "tourn"]
[EventCountry "USA"]
[SourceTitle "playchess.com"]
[Source "ChessBase"]
[SourceQuality "1"]
[TimeControl "5400+30"]

1. d4 {[%emt 0:00:51]} Nf6 {[%emt 0:05:57]} 2. Nf3 {[%emt 0:00:09]} e6 {[%emt 0:00:17]} 3. g3 {[%emt 0:00:17]} d5 {[%emt 0:00:20]} 4. Bg2 {[%emt 0:00:04]} Be7 {[%emt 0:00:04]} 5. O-O {[%emt 0:00:07]} O-O {[%emt 0:00:05]} 6. c4 {[%emt 0:01:00]} dxc4 {[%emt 0:00:15]} 7. Qc2 {[%emt 0:00:05]} a6 {[%emt 0:00:06]} 8. a4 {[%emt 0:00:09]} Bd7 {[%emt 0:00:11]} 9. Rd1 {[%emt 0:03:09]} Bc6 {[%emt 0:03:27]} 10. Nc3 {[%emt 0:00:15]} a5 {[%emt 0:10:22]} 11. e4 {[%emt 0:00:37]} Na6 {[%emt 0:06:34]} 12. Ne5 {[%emt 0:01:03]} Nb4 {[%emt 0:00:16]} 13. Qe2 {[%emt 0:00:37]} Nd3 {[%emt 0:10:13]} 14. Nxc4 {[%emt 0:05:32]} Nxc1 {[%emt 0:00:05]} 15. Raxc1 {[%emt 0:00:08]} Bb4 {[%emt 0:03:03]} 16. Ne5 {[%emt 0:11:16]} Be8 {[%emt 0:01:31]} 17. b3 {[%emt 0:08:09]} c6 {[%emt 0:06:39]} 18. Nc4 {[%emt 0:11:13]} Qb8 {[%emt 0:17:14]} 19. e5 {[%emt 0:05:38]} Nd5 {[%emt 0:00:05]} 20. Ne4 {[%emt 0:00:12]} Qd8 {[%emt 0:02:17]} 21. h4 {[%emt 0:08:56]} Qe7 {[%emt 0:07:42]} 22. Bh3 {[%emt 0:12:57]} Bd7 {[%emt 0:04:43]} 23. Ncd6 {[%emt 0:06:25]} Rab8 {[%emt 0:01:39]} 24. Qc2 {[%emt 0:02:40]} f5 {[%emt 0:05:59]} 25. Nc5 {[%emt 0:04:08]} Bc8 {[%emt 0:00:08]} 26. Bg2 {[%emt 0:01:24]} Rd8 {[%emt 0:03:21]} 27. Bxd5 {[%emt 0:07:35]} cxd5 {[%emt 0:00:14]} 28. Nd3 {[%emt 0:03:38]} Bxd6 {[%emt 0:01:23]} 29. exd6 {[%emt 0:00:02]} Qxd6 {[%emt 0:00:09]} 30. Qc6 {[%emt 0:00:33]} Qxc6 {[%emt 0:00:33]} 31. Rxc6 {[%emt 0:00:30]} Bd7 {[%emt 0:03:32]} 32. Rc7 {[%emt 0:00:00]} Bc6 {[%emt 0:00:04]} 33. Nc5 {[%emt 0:01:33]} Rdc8 {[%emt 0:01:43]} 34. Re1 {[%emt 0:00:48]} Rd8 {[%emt 0:07:19]} 35. Re7 Re8 {[%emt 0:00:00]} 36. R1xe6 {[%emt 0:00:49]} Kf8 {[%emt 0:00:00]} 37. Rc7 {[%emt 0:01:04]} b6 {[%emt 0:00:00]} 38. Rxe8+ {[%emt 0:00:39]} Kxe8 {[%emt 0:00:00]} 39. Ne6 {[%emt 0:00:28]} Bd7 {[%emt 0:00:00]} 40. Nxg7+ {[%emt 0:00:06]} Kd8 {[%emt 0:00:00]} 41. Rc3 {[%emt 0:00:46]} b5 {[%emt 0:00:00]} 42. axb5 {[%emt 0:00:04]} Rxb5 {[%emt 0:00:00]} 43. Nh5 {[%emt 0:00:09]} Rb4 {[%emt 0:00:00]} 44. Nf6 {[%emt 0:00:58]} Rxd4 {[%emt 0:00:00]} 45. Nxh7 {[%emt 0:00:06]} Rd1+ {[%emt 0:00:00]} 46. Kg2 {[%emt 0:00:48]} d4 {[%emt 0:00:00]} 47. Rc5 {[%emt 0:00:06]} Ke7 {[%emt 0:00:00]} 48. Kf3 {[%emt 0:06:47]} Rd3+ {[%emt 0:00:00]} 49. Kf4 {[%emt 0:00:00]} Rxb3 {[%emt 0:00:24]} 50. Rxa5 {[%emt 0:00:00]} Rb2 {[%emt 0:01:57]} 51. f3 {[%emt 0:00:00]} Bc6 {[%emt 0:01:45]} 52. Ra3 {[%emt 0:00:00]} Bb5 {[%emt 0:00:28]} 53. Ra1 {[%emt 0:00:25]} d3 {[%emt 0:01:00]} 54. Rd1 {[%emt 0:00:09]} Re2 {[%emt 0:00:09]} 55. Kxf5 {[%emt 0:00:47]} Ba4 {[%emt 0:00:37]} 56. Ra1 {[%emt 0:00:48]} d2 {[%emt 0:00:18]} 57. Ng5 {[%emt 0:00:26]} Re1 {[%emt 0:00:17]} 58. Rxa4 {[%emt 0:00:10]} d1=Q {[%emt 0:00:06]} 59. Re4+ {[%emt 0:00:40]} Rxe4 {[%emt 0:00:06]} 60. Kxe4 {[%emt 0:00:03]} Kf6 {[%emt 0:00:29]} 61. Kf4 {[%emt 0:00:10]} Qc1+ {[%emt 0:00:51]} 62. Kg4 {[%emt 0:00:08]} Qc8+ {[%emt 0:00:21]} 63. Kf4 {[%emt 0:00:15]} Qf5+ {[%emt 0:00:13]} 64. Ke3 {[%emt 0:00:02]} Qe5+ {[%emt 0:00:22]} 65. Ne4+ {[%emt 0:00:20]} Ke6 {[%emt 0:00:19]} 66. g4 {[%emt 0:00:13]} Qh2 {[%emt 0:00:23]} 67. h5 {[%emt 0:00:19]} Ke5 {[%emt 0:00:04]} 68. Nf2 {[%emt 0:00:38]} Qf4+ {[%emt 0:00:33]} 69. Ke2 {[%emt 0:00:02]} Qc4+ {[%emt 0:00:05]} 70. Ke3 {[%emt 0:00:17]} Qd4+ {[%emt 0:00:06]} 71. Ke2 {[%emt 0:00:08]} Kf4 {[%emt 0:00:35]} 72. Nd3+ {[%emt 0:00:18]} Kg3 {[%emt 0:00:27]} 73. g5 {[%emt 0:01:20]} Qd5 {[%emt 0:00:17]} 74. f4 {[%emt 0:00:22]} Qf3+ {[%emt 0:00:04]} 75. Kd2 {[%emt 0:00:03]} Qxh5 {[%emt 0:00:06]} 76. Ke3 {[%emt 0:00:10]} Qf3+ {[%emt 0:00:21]} 77. Kd4 {[%emt 0:00:01]} Qe2 {[%emt 0:01:21]} 78. f5 {[%emt 0:00:47]} Kg4 {[%emt 0:00:10]} 79. f6 {[%emt 0:00:29]} Kxg5 {[%emt 0:00:46]} 80. f7 {[%emt 0:00:04]} Qe7 {[%emt 0:00:14]} 81. Ne5 {[%emt 0:00:08]} Kf5 {[%emt 0:00:08]} 82. f8=Q+ {[%emt 0:00:23]} Qxf8 {[%emt 0:00:04]} 83. Nd3 {[%emt 0:00:07]} Qd6+ {[%emt 0:00:06]} 84. Ke3 {[%emt 0:00:05]} Qd5 {[%emt 0:00:19]} 85. Nf2 {[%emt 0:00:05]} Qb3+ {[%emt 0:00:08]} 86. Nd3 {[%emt 0:00:10]} Qc3 {[%emt 0:00:04]} 87. Ke2 {[%emt 0:00:06]} Ke4 {[%emt 0:00:06]} 88. Nf2+ {[%emt 0:00:04]} Kd4 {[%emt 0:00:04]} 89. Kf1 {[%emt 0:00:07]} Qf3 {[%emt 0:00:05]} 90. Ke1 {[%emt 0:00:11]} Kc3 {[%emt 0:00:18]} 91. Nd1+ {[%emt 0:00:11]} Kc2 {[%emt 0:00:05]} 92. Nf2 {[%emt 0:00:04]} Qe3+ {[%emt 0:00:09]} 93. Kf1 {[%emt 0:00:04]} Kd2 {[%emt 0:00:04]} 94. Kg2 {[%emt 0:00:20]} Ke2 {[%emt 0:00:08]} 95. Nh1 {[%emt 0:00:15]} Qg5+ {[%emt 0:00:24]} 96. Ng3+ {[%emt 0:00:16]} Ke3 {[%emt 0:00:04]} 97. Kf1 {[%emt 0:01:02]} Kf3 {[%emt 0:00:03]} 0-1

[Event "Charlotte Fall IM-D 2023"]
[Site "Charlotte"]
[Date "2023.11.19"]
[Round "5.4"]
[White "Leiva, Gianmarco"]
[Black "Dukic, Zachary"]
[Result "1-0"]
[ECO "B20"]
[WhiteElo "2403"]
[BlackElo "2233"]
[Annotator "RC"]
[PlyCount "129"]
[EventDate "2023.11.17"]
[EventType "tourn"]
[EventCountry "USA"]
[SourceTitle "playchess.com"]
[Source "ChessBase"]
[SourceQuality "1"]
[TimeControl "5400+30"]

1. Nf3 {[%emt 0:12:15]} c5 {[%emt 0:00:14]} 2. b3 {[%emt 0:01:20]} d6 {[%emt 0:00:14]} 3. Bb2 {[%emt 0:04:52]} e5 {[%emt 0:00:09]} 4. e4 {[%emt 0:01:00]} Nf6 {[%emt 0:08:51]} 5. Bb5+ {[%emt 0:00:34]} Nbd7 {[%emt 0:00:56]} 6. Nc3 {[%emt 0:05:35]} g6 {[%emt 0:01:46]} 7. a4 {[%emt 0:01:17]} Bg7 {[%emt 0:01:01]} 8. a5 {[%emt 0:04:28]} a6 {[%emt 0:03:17]} 9. Bxd7+ {[%emt 0:00:32]} Bxd7 {[%emt 0:00:34]} 10. d3 {[%emt 0:00:25]} O-O {[%emt 0:13:21]} 11. Nd2 {[%emt 0:06:43]} Bg4 {[%emt 0:00:56]} 12. f3 {[%emt 0:01:01]} Be6 {[%emt 0:00:13]} 13. Nc4 {[%emt 0:00:07]} Nh5 {[%emt 0:01:26]} 14. Qd2 {[%emt 0:10:30]} f5 {[%emt 0:01:28]} 15. Nd5 {[%emt 0:03:04]} Bxd5 {[%emt 0:17:10]} 16. exd5 {[%emt 0:03:50]} Qh4+ {[%emt 0:01:20]} 17. Qf2 {[%emt 0:06:19]} Qe7 {[%emt 0:01:29]} 18. O-O {[%emt 0:02:16]} Rad8 {[%emt 0:03:53]} 19. g3 {[%emt 0:01:51]} Qf7 {[%emt 0:02:54]} 20. Nb6 {[%emt 0:01:13]} e4 {[%emt 0:00:52]} 21. Bxg7 {[%emt 0:05:50]} Qxg7 {[%emt 0:00:07]} 22. dxe4 {[%emt 0:00:11]} fxe4 {[%emt 0:00:17]} 23. f4 {[%emt 0:00:06]} g5 {[%emt 0:11:47]} 24. f5 {[%emt 0:15:06]} Nf6 {[%emt 0:04:00]} 25. Rad1 {[%emt 0:06:31]} Rfe8 {[%emt 0:00:52]} 26. Nc4 {[%emt 0:06:34]} h5 {[%emt 0:10:15]} 27. Ne3 {[%emt 0:00:00]} Re5 {[%emt 0:02:39]} 28. Qe2 {[%emt 0:00:00]} g4 {[%emt 0:02:15]} 29. Rd2 {[%emt 0:00:00]} Nh7 {[%emt 0:00:25]} 30. Nc4 {[%emt 0:00:00]} Ree8 {[%emt 0:00:32]} 31. Qe3 {[%emt 0:00:00]} Qf6 {[%emt 0:00:21]} 32. Kg2 {[%emt 0:00:00]} Ng5 {[%emt 0:00:05]} 33. Rf4 {[%emt 0:00:01]} Rd7 {[%emt 0:02:59]} 34. Rd1 {[%emt 0:00:26]} Rf7 {[%emt 0:01:21]} 35. Kh1 {[%emt 0:00:17]} Ref8 {[%emt 0:02:30]} 36. Rdf1 {[%emt 0:01:36]} Re7 {[%emt 0:01:39]} 37. h4 {[%emt 0:01:38]} gxh3 {[%emt 0:00:38]} 38. Rh4 {[%emt 0:00:01]} Rh7 {[%emt 0:02:46]} 39. Nxd6 {[%emt 0:00:21]} Qxd6 {[%emt 0:01:15]} 40. Qxg5+ {[%emt 0:00:03]} Rg7 {[%emt 0:00:07]} 41. Qe3 {[%emt 0:02:14]} Qxg3 {[%emt 0:01:32]} 42. Qxg3 {[%emt 0:00:11]} Rxg3 {[%emt 0:00:02]} 43. Rxe4 {[%emt 0:00:04]} Rg5 {[%emt 0:00:42]} 44. Re7 {[%emt 0:01:08]} Rfxf5 {[%emt 0:00:22]} 45. Rxf5 {[%emt 0:00:07]} Rxf5 {[%emt 0:00:01]} 46. c4 {[%emt 0:00:07]} Kf8 {[%emt 0:01:22]} 47. Rxb7 {[%emt 0:00:11]} Rf3 {[%emt 0:00:26]} 48. Kh2 {[%emt 0:00:35]} Rc3 {[%emt 0:00:35]} 49. Rc7 {[%emt 0:01:45]} Rxb3 {[%emt 0:00:11]} 50. Rxc5 {[%emt 0:00:01]} Ra3 {[%emt 0:00:41]} 51. Rc7 {[%emt 0:01:09]} Rxa5 {[%emt 0:00:18]} 52. Kxh3 {[%emt 0:00:07]} Ke8 {[%emt 0:00:10]} 53. Kh4 {[%emt 0:00:13]} Kd8 {[%emt 0:00:32]} 54. Rc6 {[%emt 0:00:19]} Ra1 {[%emt 0:00:31]} 55. c5 {[%emt 0:01:15]} Kd7 {[%emt 0:00:55]} 56. Rh6 {[%emt 0:00:24]} Rd1 {[%emt 0:00:36]} 57. Rh7+ {[%emt 0:00:19]} Kc8 {[%emt 0:00:15]} 58. d6 {[%emt 0:00:05]} Rd4+ {[%emt 0:00:42]} 59. Kg5 {[%emt 0:00:09]} Rd5+ {[%emt 0:00:27]} 60. Kf6 {[%emt 0:00:01]} Rxc5 {[%emt 0:00:08]} 61. Ke6 {[%emt 0:00:07]} Rc6 {[%emt 0:00:54]} 62. Ke7 {[%emt 0:00:28]} Kb7 {[%emt 0:00:39]} 63. d7 {[%emt 0:01:20]} Rc7 {[%emt 0:00:16]} 64. Ke8 {[%emt 0:00:47]} Rxd7 {[%emt 0:00:46]} 65. Kxd7 {[%emt 0:00:05]} 1-0

[Event "Charlotte Fall IM-D 2023"]
[Site "Charlotte"]
[Date "2023.11.19"]
[Round "5.5"]
[White "Ansh M Shah"]
[Black "Girsh, Daniel"]
[Result "1-0"]
[ECO "A45"]
[WhiteElo "2169"]
[BlackElo "2221"]
[Annotator "RC"]
[PlyCount "89"]
[EventDate "2023.11.17"]
[EventType "tourn"]
[EventCountry "USA"]
[SourceTitle "playchess.com"]
[Source "ChessBase"]
[SourceQuality "1"]
[TimeControl "5400+30"]

1. d4 {[%emt 0:03:36]} Nf6 {[%emt 0:00:07]} 2. Nc3 {[%emt 0:00:11]} e6 {[%emt 0:01:20]} 3. Bf4 {[%emt 0:00:04]} Bb4 {[%emt 0:00:05]} 4. Qd3 {[%emt 0:02:48]} d5 {[%emt 0:01:27]} 5. a3 {[%emt 0:02:41]} Ba5 {[%emt 0:00:58]} 6. b4 {[%emt 0:00:58]} Bb6 {[%emt 0:00:05]} 7. Nf3 {[%emt 0:01:20]} a5 {[%emt 0:01:39]} 8. b5 {[%emt 0:04:46]} O-O {[%emt 0:11:00]} 9. g4 {[%emt 0:07:21]} Nbd7 {[%emt 0:07:48]} 10. g5 {[%emt 0:15:52]} Nh5 {[%emt 0:00:26]} 11. Bd2 {[%emt 0:03:20]} c5 {[%emt 0:00:58]} 12. e3 {[%emt 0:01:36]} cxd4 {[%emt 0:01:52]} 13. exd4 {[%emt 0:00:20]} Bc7 {[%emt 0:00:15]} 14. Be2 {[%emt 0:07:25]} Nf4 {[%emt 0:01:52]} 15. Bxf4 {[%emt 0:00:24]} Bxf4 {[%emt 0:00:03]} 16. Rg1 {[%emt 0:01:44]} Nb6 {[%emt 0:04:19]} 17. Rg4 {[%emt 0:05:37]} Qc7 {[%emt 0:04:38]} 18. Rh4 {[%emt 0:00:40]} g6 {[%emt 0:00:53]} 19. Kf1 {[%emt 0:10:13]} Bd7 {[%emt 0:06:19]} 20. Ne5 {[%emt 0:02:43]} Bxe5 {[%emt 0:07:24]} 21. dxe5 {[%emt 0:00:01]} Qxe5 {[%emt 0:00:17]} 22. f4 {[%emt 0:00:14]} Qg7 {[%emt 0:00:32]} 23. Re1 {[%emt 0:03:48]} f6 {[%emt 0:03:51]} 24. Kg1 {[%emt 0:01:41]} fxg5 {[%emt 0:00:05]} 25. fxg5 {[%emt 0:00:02]} Rf5 {[%emt 0:00:07]} 26. Qe3 {[%emt 0:06:27]} Qe5 {[%emt 0:06:34]} 27. Qxb6 {[%emt 0:00:42]} Rxg5+ {[%emt 0:04:50]} 28. Kh1 {[%emt 0:00:35]} Qxc3 {[%emt 0:00:04]} 29. Rf1 {[%emt 0:00:28]} Qd2 {[%emt 0:00:34]} 30. Qxb7 {[%emt 0:02:50]} Rf8 {[%emt 0:09:05]} 31. Qxd7 {[%emt 0:00:18]} Rxf1+ {[%emt 0:01:31]} 32. Bxf1 {[%emt 0:00:02]} Rf5 {[%emt 0:13:54]} 33. Qxh7+ {[%emt 0:03:06]} Kf8 {[%emt 0:00:01]} 34. Qh8+ {[%emt 0:00:21]} Ke7 {[%emt 0:00:04]} 35. Rh7+ {[%emt 0:00:11]} Rf7 {[%emt 0:00:09]} 36. Rxf7+ {[%emt 0:01:06]} Kxf7 {[%emt 0:00:02]} 37. Qh7+ {[%emt 0:00:37]} Kf6 {[%emt 0:00:04]} 38. Qh4+ {[%emt 0:00:09]} g5 {[%emt 0:00:18]} 39. Qh6+ {[%emt 0:01:22]} Ke5 {[%emt 0:00:25]} 40. Qg7+ {[%emt 0:01:27]} Kf4 {[%emt 0:01:14]} 41. Qf6+ {[%emt 0:00:21]} Kg4 {[%emt 0:01:25]} 42. Qxe6+ {[%emt 0:00:15]} Kf4 {[%emt 0:00:13]} 43. Qd6+ {[%emt 0:01:29]} Kg4 {[%emt 0:00:29]} 44. Qg3+ {[%emt 0:00:17]} Kh5 {[%emt 0:00:03]} 45. Qh3+ {[%emt 0:00:17]} 1-0

[Event "Charlotte Fall IM-D 2023"]
[Site "Charlotte"]
[Date "2023.11.20"]
[Round "6.1"]
[White "Marek, Matyas"]
[Black "Girsh, Daniel"]
[Result "1/2-1/2"]
[ECO "B50"]
[WhiteElo "2343"]
[BlackElo "2221"]
[Annotator "RC"]
[PlyCount "28"]
[EventDate "2023.11.17"]
[EventType "tourn"]
[EventCountry "USA"]
[SourceTitle "playchess.com"]
[Source "ChessBase"]
[SourceQuality "1"]
[TimeControl "5400+30"]

1. e4 {[%emt 0:00:03]} c5 {[%emt 0:04:34]} 2. Nf3 {[%emt 0:00:06]} d6 {[%emt 0:00:04]} 3. c3 {[%emt 0:00:04]} Nf6 {[%emt 0:00:05]} 4. h3 {[%emt 0:00:04]} Nbd7 {[%emt 0:00:03]} 5. Bd3 {[%emt 0:00:07]} Qc7 {[%emt 0:02:53]} 6. Qe2 {[%emt 0:07:26]} g6 {[%emt 0:05:57]} 7. O-O {[%emt 0:00:47]} Bg7 {[%emt 0:00:19]} 8. Bc2 {[%emt 0:00:06]} O-O {[%emt 0:01:14]} 9. d4 {[%emt 0:00:50]} e5 {[%emt 0:02:21]} 10. dxe5 {[%emt 0:01:32]} dxe5 {[%emt 0:02:25]} 11. Nbd2 {[%emt 0:02:33]} Nh5 {[%emt 0:07:57]} 12. Nc4 {[%emt 0:01:16]} Nb6 {[%emt 0:04:16]} 13. Bb3 {[%emt 0:03:25]} h6 {[%emt 1:04:52]} 14. Be3 {[%emt 0:01:17]} Nxc4 {[%emt 0:00:00]} 1/2-1/2

[Event "Charlotte Fall IM-D 2023"]
[Site "Charlotte"]
[Date "2023.11.20"]
[Round "6.2"]
[White "Dukic, Zachary"]
[Black "Ansh M Shah"]
[Result "1/2-1/2"]
[ECO "B12"]
[WhiteElo "2233"]
[BlackElo "2169"]
[Annotator "RC"]
[PlyCount "64"]
[EventDate "2023.11.17"]
[EventType "tourn"]
[EventCountry "USA"]
[SourceTitle "playchess.com"]
[Source "ChessBase"]
[SourceQuality "1"]
[TimeControl "5400+30"]

1. e4 {[%emt 0:00:02]} c6 {[%emt 0:04:08]} 2. d4 {[%emt 0:00:06]} d5 {[%emt 0:00:14]} 3. e5 {[%emt 0:00:04]} Bf5 {[%emt 0:00:10]} 4. h4 {[%emt 0:00:06]} h5 {[%emt 0:00:06]} 5. c4 {[%emt 0:00:03]} e6 {[%emt 0:00:07]} 6. Nc3 {[%emt 0:00:05]} dxc4 {[%emt 0:00:10]} 7. Bxc4 {[%emt 0:00:07]} Nd7 {[%emt 0:00:08]} 8. Nge2 {[%emt 0:00:48]} Be7 {[%emt 0:00:18]} 9. Ng3 {[%emt 0:01:48]} Bg6 {[%emt 0:00:55]} 10. Be2 {[%emt 0:00:08]} Nh6 {[%emt 0:03:12]} 11. Bxh5 {[%emt 0:09:24]} Bxh5 {[%emt 0:00:05]} 12. Qxh5 {[%emt 0:00:18]} Qb6 {[%emt 0:02:26]} 13. Nce2 {[%emt 0:20:14]} Qb4+ {[%emt 0:11:12]} 14. Kf1 {[%emt 0:00:53]} O-O-O {[%emt 0:18:29]} 15. Bxh6 {[%emt 0:03:46]} Rdf8 {[%emt 0:10:41]} 16. Qg4 {[%emt 0:09:51]} gxh6 {[%emt 0:07:21]} 17. Ne4 {[%emt 0:04:31]} Qxb2 {[%emt 0:03:29]} 18. Re1 {[%emt 0:05:27]} Qxa2 {[%emt 0:01:31]} 19. Rh3 {[%emt 0:02:34]} Rhg8 {[%emt 0:05:18]} 20. Qf4 {[%emt 0:00:54]} f6 {[%emt 0:07:31]} 21. Qxh6 {[%emt 0:02:46]} fxe5 {[%emt 0:00:55]} 22. dxe5 {[%emt 0:00:20]} Nxe5 {[%emt 0:01:26]} 23. Nf4 {[%emt 0:00:09]} Qc4+ {[%emt 0:03:55]} 24. Kg1 {[%emt 0:00:35]} Bb4 {[%emt 0:02:43]} 25. Rg3 {[%emt 0:28:02]} Kb8 {[%emt 0:07:02]} 26. Nxe6 {[%emt 0:01:21]} Re8 {[%emt 0:05:46]} 27. Rxg8 {[%emt 0:01:35]} Rxg8 {[%emt 0:00:05]} 28. Qf6 {[%emt 0:01:05]} Qd5 {[%emt 0:01:53]} 29. Nf4 {[%emt 0:04:28]} Qd4 {[%emt 0:01:11]} 30. Ne6 {[%emt 0:00:54]} Qd5 {[%emt 0:00:13]} 31. Nf4 {[%emt 0:00:07]} Qd4 {[%emt 0:01:54]} 32. Ne6 {[%emt 0:00:12]} Qd5 {[%emt 0:01:56]} 1/2-1/2